fUST/lending_fUST_20250705
["ID","MTS","AMOUNT","RATE_DAILY","PERIOD"]
[369664736,1751688641078,-460.0,0.00020672,2]
[369664739,1751688641087,-403.6509934,0.00020672,2]
[369664742,1751688641096,-460.0,0.00020672,2]
[369664745,1751688641105,-462.39955366,0.00020672,2]
[369664747,1751688641114,-460.0,0.00020672,2]
[369664750,1751688641124,-460.0,0.00020672,2]
[369664753,1751688641133,-460.0,0.00020672,2]
[369664756,1751688641142,-460.0,0.00020672,2]
[369664759,1751688641151,-460.0,0.00020672,2]
[369664762,1751688641160,-460.0,0.00020672,2]
[369664766,1751688641173,-460.0,0.00020672,2]
[369664770,1751688641187,-460.44,0.00020672,2]
[369664774,1751688641200,-540.42,0.00020672,2]
[369664777,1751688641213,-163.73400028,0.00020672,2]
[369664781,1751688641226,-500.0,0.00020678,2]
[369664785,1751688641236,-345.31,0.00020836,3]
[369664788,1751688641247,-172.66,0.00020836,3]
[369664791,1751688641259,-517.99,0.00020836,3]
[369664794,1751688641271,-275.45780059,0.00020845,2]
[369664798,1751688641283,-246.55380317,0.00020845,2]
[369664802,1751688641294,-152.60815025,0.00020845,2]
[369664805,1751688641306,-500.0,0.00020845,2]
[369664809,1751688641320,-461.26860359,0.00020845,2]
[369664813,1751688641332,-275.77503544,0.00020846,2]
[369664816,1751688641344,-1156.45399984,0.00020846,2]
[369664820,1751688641356,-28772.56724122,0.00020846,2]
[369664823,1751688641368,-460.0,0.00020899,2]
[369664827,1751688641380,-460.0,0.00020899,2]
[369664831,1751688641394,-460.0,0.00020899,2]
[369664834,1751688641406,-460.91272608,0.00020899,2]
[369664838,1751688641419,-460.0626031,0.00020899,2]
[369664842,1751688641431,-460.0,0.00020899,2]
[369664845,1751688641443,-463.12687624,0.00020899,2]
[369664848,1751688641455,-460.0,0.00020899,2]
[369664851,1751688641468,-460.0,0.00020899,2]
[369664853,1751688641479,-561.83,0.00020899,2]
[369664856,1751688641491,-460.0,0.00020899,2]
[369664859,1751688641501,-556.45,0.00020899,2]
[369664863,1751688641512,-460.0,0.00020899,2]
[369664867,1751688641523,-460.0,0.00020899,2]
[369664870,1751688641534,-460.0,0.00020899,2]
[369664873,1751688641545,-460.0,0.00020899,2]
[369664876,1751688641556,-460.0,0.00020899,2]
[369664880,1751688641568,-460.0,0.00020899,2]
[369664884,1751688641580,-460.0,0.00020899,2]
[369664887,1751688641593,-460.0,0.00020899,2]
[369664892,1751688641606,-460.0,0.00020899,2]
[369664895,1751688641619,-460.0,0.00020899,2]
[369664898,1751688641630,-460.0,0.00020899,2]
[369664903,1751688641643,-460.0,0.00020899,2]
[369664906,1751688641653,-91774.7411449,0.000209,2]
[369664909,1751688641663,-153.226905,0.000209,2]
[369664912,1751688641673,-612.26710043,0.000209,4]
[369664915,1751688641683,-151.0,0.000209,2]
[369664918,1751688641693,-169.82991432,0.00020904,2]
[369664921,1751688641705,-202.02,0.00020942,2]
[369664926,1751688641717,-533.23,0.00020942,2]
[369664929,1751688641730,-460.0,0.00020942,2]
[369664932,1751688641742,-460.0,0.00020942,2]
[369664935,1751688641752,-466.72136253,0.00020942,2]
[369664939,1751688641763,-419.33764715,0.00020942,2]
[369664942,1751688641775,-460.0,0.00020943,2]
[369664945,1751688641786,-280.97,0.00020943,2]
[369664949,1751688641799,-716.46,0.00020943,2]
[369664953,1751688641812,-227.48,0.00020943,2]
[369664957,1751688641824,-460.0,0.00020943,2]
[369664960,1751688641835,-389.64,0.00020943,2]
[369664963,1751688641845,-460.0,0.00020943,2]
[369664966,1751688641855,-221.12,0.00020943,2]
[369664969,1751688641866,-460.0,0.00020943,2]
[369664973,1751688641876,-460.0,0.00020943,2]
[369664976,1751688641887,-460.0,0.00020943,2]
[369664979,1751688641899,-460.0,0.00020943,2]
[369664983,1751688641911,-460.0,0.00020943,2]
[369664987,1751688641922,-460.0,0.00020943,2]
[369664990,1751688641933,-460.0,0.00020943,2]
[369664993,1751688641944,-235.19,0.00020943,2]
[369664996,1751688641955,-520.56,0.00020943,2]
[369664999,1751688641965,-460.0,0.00020943,2]
[369665003,1751688641977,-163.36,0.00020943,2]
[369665007,1751688641988,-578.99,0.00020943,2]
[369665010,1751688641999,-460.0,0.00020943,2]
[369665013,1751688642010,-460.0,0.00020943,2]
[369665016,1751688642022,-460.0,0.00020943,2]
[369665018,1751688642033,-264.16,0.00020943,2]
[369665021,1751688642043,-245.55,0.00020943,2]
[369665024,1751688642055,-460.0,0.00020944,2]
[369665027,1751688642066,-180.28,0.00020945,2]
[369665030,1751688642077,-460.0,0.00020945,2]
[369665034,1751688642088,-460.0,0.00020945,2]
[369665037,1751688642098,-333.08,0.00020945,2]
[369665040,1751688642111,-264.36,0.00020945,2]
[369665044,1751688642122,-229.31,0.00020945,2]
[369665047,1751688642134,-460.0,0.00020945,2]
[369665050,1751688642144,-460.0,0.00020945,2]
[369665054,1751688642157,-460.0,0.00020945,2]
[369665058,1751688642169,-460.0,0.00020945,2]
[369665061,1751688642180,-460.0,0.00020945,2]
[369665064,1751688642191,-243.8,0.00020945,2]
[369665067,1751688642202,-433.27480925,0.00020945,2]
[369665070,1751688642213,-460.0,0.00020945,2]
[369665074,1751688642224,-498.92112782,0.00020945,2]
[369665078,1751688642235,-457.86,0.00020945,2]
[369665081,1751688642246,-460.0,0.00020945,2]
[369665084,1751688642257,-564.81,0.00020945,2]
[369665087,1751688642268,-460.0,0.00020945,2]
[369665091,1751688642278,-342.64,0.00020945,2]
[369665093,1751688642289,-265.95,0.00020945,2]
[369665097,1751688642300,-460.0,0.00020945,2]
[369665099,1751688642311,-399.11667566,0.00020945,2]
[369665102,1751688642322,-460.0,0.00020945,2]
[369665105,1751688642333,-154.38,0.00020945,2]
[369665107,1751688642344,-495.85,0.00020945,2]
[369665111,1751688642355,-460.0,0.00020945,2]
[369665113,1751688642366,-609.25,0.00020945,2]
[369665116,1751688642378,-460.0,0.00020945,2]
[369665119,1751688642389,-460.0,0.00020945,2]
[369665121,1751688642400,-238.73,0.00020945,2]
[369665124,1751688642411,-391.48,0.00020945,2]
[369665128,1751688642423,-428.87,0.00020945,2]
[369665130,1751688642433,-455.16,0.00020945,2]
[369665131,1751688642444,-460.0,0.00020945,2]
[369665133,1751688642455,-248.66,0.00020946,2]
[369665134,1751688642466,-460.0,0.00020946,2]
[369665136,1751688642477,-213.67,0.00020946,2]
[369665138,1751688642488,-460.0,0.00020946,2]
[369665140,1751688642499,-220.99,0.00020946,2]
[369665141,1751688642510,-286.2,0.00020946,2]
[369665143,1751688642521,-286.02837773,0.00020946,2]
[369665156,1751688642694,-460.0,0.00020946,2]
[369665157,1751688642704,-183.15,0.00020946,2]
[369665158,1751688642713,-155.72,0.00020946,2]
[369665159,1751688642722,-170.08,0.00020946,2]
[369665160,1751688642731,-460.0,0.00020946,2]
[369665162,1751688642740,-192.50555588,0.00020946,2]
[369665165,1751688642749,-203.06,0.00020946,2]
[369665168,1751688642759,-208.01,0.00020946,2]
[369665171,1751688642768,-268.5,0.00020946,2]
[369665174,1751688642778,-422.01,0.00020946,2]
[369665177,1751688642788,-313.07296843,0.00020946,2]
[369665180,1751688642797,-177.16,0.00020946,2]
[369665183,1751688642807,-460.0,0.00020998,2]
[369665186,1751688642817,-460.0,0.00020998,2]
[369665189,1751688642827,-460.0,0.00020998,2]
[369665192,1751688642837,-501.33,0.00020998,2]
[369665195,1751688642846,-548.88,0.00020998,2]
[369665198,1751688642855,-460.0,0.00020998,2]
[369665201,1751688642864,-460.0,0.00020998,2]
[369665204,1751688642873,-150.0,0.00021,2]
[369665206,1751688642883,-61456.12313493,0.00021,2]
[369665208,1751688642899,-900.76597317,0.00021,2]
[369665211,1751688642910,-4424.23979782,0.00021,2]
[369665213,1751688642921,-364.52002253,0.00021,2]
[369665215,1751688642933,-2238.04190898,0.00021,2]
[369665217,1751688642943,-1293.46874142,0.00021,2]
[369665219,1751688642955,-444.99950906,0.00021,2]
[369665222,1751688642966,-401.42757738,0.00021,2]
[369665224,1751688642978,-54364.13133198,0.00021,2]
[369665226,1751688642989,-1013.67909539,0.00021,2]
[369665232,1751688643031,-460.0,0.00020669,2]
[369665234,1751688643039,-460.0,0.00020943,2]
[369665236,1751688643048,-83391.95792534,0.00021,2]
[369665238,1751688643059,-749.18887596,0.00021,2]
[369665240,1751688643070,-110766.3581901,0.00021,2]
[369665242,1751688643081,-2519.14900514,0.00021,2]
[369665244,1751688643092,-1171.60184398,0.00021,2]
[369665276,1751688643369,-128.78725136,0.00021,2]
[369665327,1751688643813,-262.248948,0.00021,2]
[369665334,1751688643866,-1258.39944735,0.00021,2]
[369665341,1751688643920,-14760.24227743,0.00021,2]
[369665343,1751688643932,-595.33629105,0.00021,2]
[369665345,1751688643943,-500.0,0.00021,2]
[369665347,1751688643955,-8894.94975558,0.00021,2]
[369665350,1751688643967,-62848.79555769,0.00021,2]
[369665437,1751688646645,-460.0,0.00020668,2]
[369665438,1751688646655,-656.76,0.00020668,2]
[369665439,1751688646664,-460.0,0.00020671,2]
[369665440,1751688646674,-460.0,0.00020942,2]
[369665441,1751688646685,-656.76,0.00020942,2]
[369665442,1751688646695,-460.0,0.00020945,2]
[369665443,1751688646704,-44067.04961951,0.00021,2]
[369665444,1751688646716,-2098.400025,0.00021,2]
[369665445,1751688646727,-648.96,0.00021,2]
[369665446,1751688646739,-37046.39805618,0.00021,2]
[369665461,1751688880347,167.191999,0.00013699,2]
[369665462,1751689094968,-1840.0,0.00019724,2]
[369665464,1751689229766,-768.0,0.00019527,2]
[369665465,1751689292745,-2521.0,0.00019527,2]
[369665467,1751689361292,-341.13387433,0.00019527,2]
[369665468,1751689361313,-1038.86612567,0.00019693,2]
[369665476,1751689619911,-221.58835963,0.00019693,2]
[369665477,1751689619932,-238.41164037,0.00019812,2]
[369665480,1751689688364,500.0,0.00027,120]
[369665481,1751689745209,500.0,0.00027,120]
[369665482,1751689754356,1220.0,0.00027,120]
[369665498,1751689831992,-161.0000034,0.00019402,2]
[369665501,1751689832002,-27.77236019,0.00019812,2]
[369665503,1751689832011,-154.54352121,0.00019912,2]
[369665505,1751689832020,-160.0,0.00020107,2]
[369665507,1751689832029,-160.0,0.00020107,2]
[369665508,1751689832038,-211.90784952,0.00020371,2]
[369665509,1751689832048,-207.4,0.0002046,2]
[369665510,1751689832058,-690.642,0.0002046,2]
[369665511,1751689832067,-340.05643715,0.00020466,2]
[369665512,1751689832076,-300.0,0.00020469,2]
[369665517,1751689832250,-300.0,0.00020469,2]
[369665518,1751689832261,-1200.0,0.00020469,2]
[369665519,1751689832270,-300.0,0.00020469,2]
[369665520,1751689832280,-877.0,0.0002047,2]
[369665521,1751689832289,-460.0,0.0002047,2]
[369665522,1751689832299,-460.0,0.0002047,2]
[369665523,1751689832309,-460.0,0.0002047,2]
[369665524,1751689832322,-460.0,0.0002047,2]
[369665525,1751689832332,-461.51128878,0.0002047,2]
[369665526,1751689832341,-460.0,0.0002047,2]
[369665527,1751689832351,-460.67705129,0.0002047,2]
[369665528,1751689832363,-460.0,0.0002047,2]
[369665529,1751689832373,-460.0,0.0002047,2]
[369665530,1751689832383,-460.0,0.0002047,2]
[369665531,1751689832396,-460.0,0.0002047,2]
[369665532,1751689832406,-460.0,0.0002047,2]
[369665533,1751689832415,-460.0,0.0002047,2]
[369665534,1751689832424,-460.0,0.0002047,2]
[369665535,1751689832434,-460.0,0.0002047,2]
[369665536,1751689832443,-564.70373005,0.0002047,2]
[369665537,1751689832452,-460.0,0.0002047,2]
[369665538,1751689832462,-460.0,0.0002047,2]
[369665539,1751689832471,-460.0,0.0002047,2]
[369665540,1751689832481,-360.98415169,0.00020471,2]
[369665541,1751689832490,-460.0,0.00020471,2]
[369665542,1751689832499,-460.0,0.00020471,2]
[369665543,1751689832509,-460.0,0.00020471,2]
[369665544,1751689832519,-460.0,0.00020471,2]
[369665545,1751689832529,-462.67744549,0.00020471,2]
[369665546,1751689832538,-172.82124323,0.00020471,2]
[369665547,1751689832547,-460.0,0.00020471,2]
[369665548,1751689832557,-460.0,0.00020471,2]
[369665549,1751689832566,-460.0,0.00020471,2]
[369665550,1751689832576,-460.0,0.00020471,2]
[369665551,1751689832585,-460.0,0.00020471,2]
[369665552,1751689832594,-460.0,0.00020471,2]
[369665553,1751689832604,-460.0,0.00020471,2]
[369665554,1751689832613,-460.0,0.00020471,2]
[369665555,1751689832623,-460.0,0.00020471,2]
[369665556,1751689832633,-460.0,0.00020471,2]
[369665557,1751689832642,-460.0,0.00020471,2]
[369665558,1751689832651,-460.0,0.00020471,2]
[369665559,1751689832661,-403.40278664,0.00020471,2]
[369665560,1751689832670,-460.0,0.00020471,2]
[369665561,1751689832680,-460.0,0.00020471,2]
[369665562,1751689832689,-460.0,0.00020471,2]
[369665563,1751689832699,-605.79227653,0.00020471,2]
[369665564,1751689832708,-460.27094003,0.00020471,2]
[369665565,1751689832717,-460.0,0.00020471,2]
[369665566,1751689832726,-460.0,0.00020471,2]
[369665567,1751689832736,-460.0,0.00020471,2]
[369665568,1751689832745,-1049.42,0.00020471,2]
[369665569,1751689832757,-460.0,0.00020471,2]
[369665570,1751689832766,-1346.49,0.00020471,2]
[369665571,1751689832775,-460.0,0.00020471,2]
[369665572,1751689832785,-460.0,0.00020471,2]
[369665573,1751689832794,-460.0,0.00020471,2]
[369665574,1751689832803,-460.0,0.00020471,2]
[369665575,1751689832813,-460.0,0.00020471,2]
[369665576,1751689832823,-460.9913879,0.00020471,2]
[369665577,1751689832832,-460.0,0.00020471,2]
[369665578,1751689832842,-460.0,0.00020471,2]
[369665579,1751689832851,-460.0,0.00020471,2]
[369665580,1751689832861,-460.0,0.00020471,2]
[369665581,1751689832870,-460.0,0.00020471,2]
[369665582,1751689832880,-375.34245394,0.00020471,2]
[369665583,1751689832890,-460.0,0.00020471,2]
[369665584,1751689832899,-460.0,0.00020471,2]
[369665585,1751689832908,-460.0,0.00020471,2]
[369665586,1751689832917,-460.0,0.00020471,2]
[369665587,1751689832926,-460.0,0.00020471,2]
[369665588,1751689832935,-798.14,0.00020471,2]
[369665589,1751689832944,-460.0,0.00020471,2]
[369665590,1751689832954,-462.06244435,0.00020471,2]
[369665591,1751689832964,-1183.19,0.00020471,2]
[369665592,1751689832973,-460.0,0.00020471,2]
[369665593,1751689832982,-460.0,0.00020471,2]
[369665594,1751689832991,-460.0,0.00020471,2]
[369665595,1751689833001,-461.35234278,0.00020471,2]
[369665596,1751689833010,-166.68349793,0.00020471,2]
[369665597,1751689833019,-500.0,0.00020471,2]
[369665598,1751689833028,-583.34561758,0.00020471,2]
[369665599,1751689833038,-460.0,0.00020471,2]
[369665600,1751689833047,-460.0,0.00020471,2]
[369665601,1751689833057,-460.0,0.00020471,2]
[369665602,1751689833066,-460.0,0.00020471,2]
[369665603,1751689833076,-549.07,0.00020471,2]
[369665604,1751689833086,-460.0,0.00020471,2]
[369665605,1751689833095,-533.23,0.00020471,2]
[369665606,1751689833104,-460.0,0.00020471,2]
[369665607,1751689833114,-460.71558993,0.00020471,2]
[369665608,1751689833123,-460.0,0.00020471,2]
[369665609,1751689833132,-460.0,0.00020471,2]
[369665610,1751689833142,-460.0,0.00020471,2]
[369665611,1751689833152,-460.0,0.00020471,2]
[369665612,1751689833161,-460.0,0.00020471,2]
[369665613,1751689833171,-730.54,0.00020471,2]
[369665614,1751689833180,-460.0,0.00020471,2]
[369665615,1751689833190,-460.0,0.00020471,2]
[369665616,1751689833200,-460.0,0.00020471,2]
[369665617,1751689833209,-460.0,0.00020471,2]
[369665618,1751689833219,-460.0,0.00020471,2]
[369665619,1751689833229,-460.0,0.00020471,2]
[369665620,1751689833238,-460.0,0.00020471,2]
[369665621,1751689833247,-460.0,0.00020471,2]
[369665622,1751689833257,-28772.56724122,0.00020471,2]
[369665623,1751689833267,-460.0,0.00020471,2]
[369665624,1751689833277,-460.0,0.00020471,2]
[369665625,1751689833288,-460.0,0.00020471,2]
[369665626,1751689833297,-460.0,0.00020471,2]
[369665627,1751689833307,-460.0,0.00020471,2]
[369665628,1751689833323,-466.72136253,0.00020471,2]
[369665629,1751689833333,-460.0,0.00020472,2]
[369665630,1751689833343,-460.0,0.00020472,2]
[369665631,1751689833353,-460.0,0.00020472,2]
[369665632,1751689833362,-460.0,0.00020472,2]
[369665633,1751689833371,-460.0,0.00020472,2]
[369665634,1751689833382,-460.0,0.00020472,2]
[369665635,1751689833392,-1003.2660744,0.00020472,2]
[369665636,1751689833401,-460.0,0.00020472,2]
[369665637,1751689833410,-460.0,0.00020472,2]
[369665638,1751689833419,-460.72265149,0.00020472,2]
[369665639,1751689833429,-460.0,0.00020472,2]
[369665640,1751689833438,-258.51295092,0.00020472,2]
[369665641,1751689833448,-460.0,0.00020472,2]
[369665642,1751689833457,-460.0,0.00020472,2]
[369665643,1751689833467,-460.0,0.00020472,2]
[369665644,1751689833477,-460.0,0.00020472,2]
[369665645,1751689833487,-460.0,0.00020472,2]
[369665646,1751689833497,-460.0,0.00020472,2]
[369665647,1751689833506,-460.0,0.00020472,2]
[369665648,1751689833516,-460.0,0.00020472,2]
[369665649,1751689833525,-460.0,0.00020472,2]
[369665650,1751689833535,-460.0,0.00020472,2]
[369665651,1751689833544,-460.0,0.00020472,2]
[369665652,1751689833553,-460.0,0.00020472,2]
[369665653,1751689833562,-460.0,0.00020472,2]
[369665654,1751689833572,-460.0,0.00020472,2]
[369665655,1751689833581,-460.0,0.00020472,2]
[369665656,1751689833591,-460.0,0.00020472,2]
[369665657,1751689833600,-460.0,0.00020472,2]
[369665658,1751689833609,-555.63522117,0.00020472,2]
[369665659,1751689833619,-460.0,0.00020472,2]
[369665660,1751689833628,-460.0,0.00020472,2]
[369665661,1751689833638,-460.0,0.00020472,2]
[369665662,1751689833647,-460.0,0.00020472,2]
[369665663,1751689833656,-460.0,0.00020472,2]
[369665664,1751689833666,-460.0,0.00020472,2]
[369665665,1751689833675,-460.0,0.00020472,2]
[369665666,1751689833686,-460.0,0.00020472,2]
[369665667,1751689833695,-460.0,0.00020472,2]
[369665668,1751689833706,-500.0,0.00020472,2]
[369665669,1751689833715,-460.0,0.00020472,2]
[369665670,1751689833725,-460.0,0.00020472,2]
[369665671,1751689833735,-460.0,0.00020472,2]
[369665672,1751689833744,-254.20277781,0.00020472,2]
[369665673,1751689833753,-460.0,0.00020472,2]
[369665674,1751689833762,-460.0,0.00020472,2]
[369665675,1751689833771,-460.0,0.00020472,2]
[369665676,1751689833781,-463.02156575,0.00020472,2]
[369665677,1751689833790,-460.0,0.00020472,2]
[369665678,1751689833800,-460.0,0.00020472,2]
[369665679,1751689833809,-460.0,0.00020472,2]
[369665680,1751689833818,-460.0,0.00020472,2]
[369665681,1751689833828,-460.0,0.00020472,2]
[369665682,1751689833838,-460.0,0.00020472,2]
[369665683,1751689833847,-460.0,0.00020472,2]
[369665684,1751689833856,-460.0,0.00020472,2]
[369665685,1751689833867,-460.0,0.00020472,2]
[369665686,1751689833876,-460.0,0.00020472,2]
[369665687,1751689833886,-460.0,0.00020472,2]
[369665688,1751689833896,-460.0,0.00020472,2]
[369665689,1751689833906,-460.0,0.00020472,2]
[369665690,1751689833915,-460.0,0.00020472,2]
[369665691,1751689833925,-460.0,0.00020472,2]
[369665692,1751689833934,-460.0,0.00020472,2]
[369665693,1751689833944,-460.0,0.00020472,2]
[369665694,1751689833953,-460.0,0.00020472,2]
[369665695,1751689833962,-465.16537603,0.00020472,2]
[369665696,1751689833971,-460.0,0.00020472,2]
[369665697,1751689833981,-460.0,0.00020472,2]
[369665698,1751689833991,-460.0,0.00020472,2]
[369665699,1751689834001,-460.0,0.00020472,2]
[369665700,1751689834010,-460.0,0.00020472,2]
[369665701,1751689834019,-460.0,0.00020472,2]
[369665702,1751689834028,-460.0,0.00020472,2]
[369665703,1751689834038,-460.0,0.00020472,2]
[369665704,1751689834047,-460.0,0.00020472,2]
[369665705,1751689834056,-460.0,0.00020472,2]
[369665706,1751689834066,-500.0,0.00020472,2]
[369665707,1751689834075,-460.0,0.00020472,2]
[369665708,1751689834085,-460.0,0.00020472,2]
[369665709,1751689834094,-460.0,0.00020472,2]
[369665710,1751689834104,-460.0,0.00020472,2]
[369665711,1751689834114,-460.0,0.00020472,2]
[369665712,1751689834123,-460.0,0.00020472,2]
[369665713,1751689834133,-460.0,0.00020472,2]
[369665714,1751689834142,-460.0,0.00020472,2]
[369665715,1751689834152,-460.0,0.00020472,2]
[369665716,1751689834161,-460.0,0.00020472,2]
[369665717,1751689834171,-460.0,0.00020472,2]
[369665718,1751689834181,-1882.88,0.00020472,2]
[369665719,1751689834192,-460.0,0.00020472,2]
[369665720,1751689834202,-460.0,0.00020472,2]
[369665721,1751689834211,-460.0,0.00020472,2]
[369665722,1751689834221,-460.0,0.00020472,2]
[369665723,1751689834232,-460.0,0.00020472,2]
[369665724,1751689834241,-460.0,0.00020472,2]
[369665725,1751689834251,-460.0,0.00020472,2]
[369665726,1751689834370,-460.0,0.00020472,2]
[369665727,1751689834381,-460.0,0.00020472,2]
[369665728,1751689834390,-460.0,0.00020472,2]
[369665729,1751689834399,-460.0,0.00020472,2]
[369665730,1751689834408,-460.0,0.00020472,2]
[369665731,1751689834418,-460.0,0.00020472,2]
[369665732,1751689834427,-460.0,0.00020472,2]
[369665733,1751689834438,-460.0,0.00020472,2]
[369665734,1751689834447,-460.0,0.00020472,2]
[369665735,1751689834456,-460.0,0.00020472,2]
[369665736,1751689834465,-500.0,0.00020472,2]
[369665737,1751689834474,-460.0,0.00020472,2]
[369665738,1751689834483,-460.0,0.00020472,2]
[369665739,1751689834492,-500.0,0.00020472,2]
[369665740,1751689834502,-460.0,0.00020472,2]
[369665741,1751689834511,-460.0,0.00020472,2]
[369665742,1751689834521,-460.0,0.00020472,2]
[369665743,1751689834530,-500.0,0.00020472,2]
[369665744,1751689834539,-151.35208578,0.00020472,2]
[369665745,1751689834549,-466.01776952,0.00020472,2]
[369665746,1751689834558,-460.0,0.00020472,2]
[369665747,1751689834567,-460.0,0.00020472,2]
[369665748,1751689834576,-460.91499406,0.00020472,2]
[369665749,1751689834586,-460.0,0.00020472,2]
[369665750,1751689834595,-460.0,0.00020472,2]
[369665751,1751689834604,-460.0,0.00020472,2]
[369665752,1751689834613,-460.0,0.00020472,2]
[369665753,1751689834622,-460.0,0.00020472,2]
[369665754,1751689834631,-460.0,0.00020472,2]
[369665755,1751689834641,-460.0,0.00020472,2]
[369665756,1751689834651,-500.0,0.00020472,2]
[369665757,1751689834660,-460.0,0.00020472,2]
[369665758,1751689834669,-460.0,0.00020472,2]
[369665759,1751689834679,-151.0,0.00020472,2]
[369665760,1751689834688,-235.62467999,0.00020472,2]
[369665761,1751689834706,-460.0,0.00020472,2]
[369665762,1751689834715,-460.0,0.00020472,2]
[369665763,1751689834724,-460.0,0.00020472,2]
[369665764,1751689834733,-460.0,0.00020472,2]
[369665765,1751689834742,-151.53734073,0.00020472,2]
[369665766,1751689834751,-460.0,0.00020472,2]
[369665767,1751689834760,-460.0,0.00020472,2]
[369665768,1751689834770,-460.0,0.00020472,2]
[369665769,1751689834779,-460.0,0.00020472,2]
[369665770,1751689834788,-400.72824932,0.00020472,2]
[369665771,1751689834797,-460.0,0.00020472,2]
[369665772,1751689834806,-218.15013796,0.00020472,2]
[369665773,1751689834815,-460.0,0.00020472,2]
[369665774,1751689834824,-460.0,0.00020472,2]
[369665775,1751689834834,-460.0,0.00020472,2]
[369665776,1751689834843,-499.14138798,0.00020472,2]
[369665777,1751689834852,-460.0,0.00020472,2]
[369665778,1751689834861,-460.0,0.00020472,2]
[369665779,1751689834870,-500.0,0.00020472,2]
[369665780,1751689834879,-340.05643712,0.00020492,2]
[369665781,1751689834888,-500.0,0.00020499,2]
[369665782,1751689834898,-500.0,0.00020499,2]
[369665783,1751689834907,-500.0,0.00020499,2]
[369665784,1751689834917,-469.17191758,0.00020499,2]
[369665785,1751689834926,-716.195754,0.00020515,2]
[369665786,1751689834935,-340.05643712,0.00020517,2]
[369665787,1751689834944,-1296.69781812,0.00020519,2]
[369665788,1751689834953,-500.0,0.00020527,2]
[369665789,1751689834962,-500.0,0.00020527,2]
[369665790,1751689834972,-580.28659112,0.00020527,2]
[369665791,1751689834981,-340.05643712,0.00020543,2]
[369665792,1751689834990,-260.48,0.00020554,3]
[369665793,1751689835000,-500.0,0.00020554,2]
[369665794,1751689835009,-500.0,0.00020554,2]
[369665795,1751689835018,-166.15,0.00020555,3]
[369665796,1751689835027,-520.97,0.00020555,3]
[369665797,1751689835036,-1041.94,0.00020556,3]
[369665798,1751689835046,-781.49,0.00020556,3]
[369665799,1751689835055,-5000.0,0.00020559,2]
[369665800,1751689835065,-230.42616721,0.00020563,2]
[369665801,1751689835075,-160.0,0.00020563,2]
[369665802,1751689835084,-12580.16877015,0.00020564,2]
[369665803,1751689835094,-837.5764301,0.00020564,2]
[369665804,1751689835104,-160.0,0.00020564,2]
[369665805,1751689835113,-848.02350475,0.00020564,2]
[369665806,1751689835123,-214.00689675,0.00020564,2]
[369665807,1751689835132,-160.0,0.00020564,2]
[369665808,1751689835142,-174.855,0.00020565,2]
[369665809,1751689835151,-500.0,0.00020565,2]
[369665810,1751689835160,-500.0,0.00020565,2]
[369665811,1751689835170,-500.0,0.00020565,2]